bitfinex-derivatives/quotes_SOLF0:USTF0_20250522
["timestamp","ask_amount","ask_price","bid_price","bid_amount"]
[1747903969376,0.04198506,179.14,179.03,137.62]
[1747903969377,5.5834,179.07,179.03,137.62]
[1747903969581,137.62,179.11,179.0,3.48046591]
[1747903969773,5.5841,179.05,179.01,5.585]
[1747903969972,1.9064,179.1,179.01,5.585]
[1747903970280,0.03863525,179.07,179.04,0.03547365]
[1747903970681,5.5839,179.05,179.04,0.03547365]
[1747903971880,0.03863525,179.07,179.04,0.03547365]
[1747903972880,5.62223525,179.07,179.04,5.61947365]
[1747903974883,0.03863525,179.07,179.05,5.5838]
[1747903975083,0.03863525,179.07,179.04,0.03547365]
[1747903975483,5.62193525,179.07,179.04,5.61947365]
[1747903975984,5.5839,179.06,179.04,0.03547365]
[1747903977486,5.5839,179.05,179.04,0.03547365]
[1747903979390,0.03863525,179.07,178.96,5.5866]
[1747903979391,5.5858,178.99,178.96,5.5866]
[1747903979879,5.5861,178.98,178.95,5.587]
[1747903980084,1.8944,179.06,178.94,137.66]
[1747903980489,5.5856,179.0,178.98,0.04269031]
[1747903980987,5.5852,179.01,178.98,0.04269031]
[1747903981188,0.036745,179.02,178.98,0.04269031]
[1747903981587,5.5852,179.01,178.98,5.62859031]
[1747903981992,0.036745,179.02,178.98,0.04269031]
[1747903982188,5.5852,179.01,178.98,5.62869031]
[1747903982388,0.036745,179.02,178.98,0.04269031]
[1747903982796,5.5855,179.0,178.98,5.62859031]
[1747903982992,0.036745,179.02,178.98,5.62859031]
[1747903983189,0.036745,179.02,178.98,0.04269031]
[1747903984895,5.5853,179.01,178.98,5.62859031]
[1747903985192,0.036745,179.02,178.98,5.62859031]
[1747903985390,5.5856,179.0,178.98,0.04269031]
[1747903985588,0.036745,179.02,178.98,0.04269031]
[1747903986293,5.5856,179.0,178.98,0.04269031]
[1747903986997,5.5858,178.99,178.98,0.04269031]
[1747903987294,0.036745,179.02,178.98,0.04269031]
[1747903987487,5.17817178,179.11,179.0,7.07071457]
[1747903987793,5.17817178,179.11,179.01,106.14]
[1747903987994,5.17817178,179.11,179.1,5.5823]
[1747903988195,6.89840069,179.13,179.1,137.24]
[1747903988588,0.04163221,179.13,179.12,5.5817]
[1747903988897,144.15840069,179.26,179.1,137.27817969]
[1747903989092,1.8683,179.24,179.12,7.07071457]
[1747903989302,1.8683,179.24,179.19,5.5794]
[1747903989489,1.8683,179.24,179.16,137.26]
[1747903989801,0.04298167,179.22,179.18,0.03767574]
[1747903991589,5.5801,179.18,179.13,5.5813]
[1747903992001,5.5796,179.19,179.14,5.5808]
[1747903992498,0.03725209,179.18,179.15,0.04098205]
[1747903993598,5.5805,179.16,179.15,0.04098205]
[1747903994895,5.5804,179.17,179.15,0.04098205]
[1747903995089,0.03725209,179.18,179.15,0.04098205]
[1747903997992,0.03725209,179.18,179.04,7.07071457]
[1747903998294,108.0814,179.2,179.05,137.2]
[1747903998697,108.0814,179.2,179.08,5.5827]
[1747903998996,0.04129797,179.16,179.12,0.04213722]
[1747904000197,5.5814,179.13,179.12,0.04213722]
[1747904002211,0.04129797,179.16,179.12,0.04213722]
[1747904002802,0.04129797,179.16,179.15,5.5808]
[1747904003102,0.04129797,179.16,179.12,0.04213722]
[1747904003299,5.62179797,179.16,179.13,5.5811]
[1747904003604,5.62179797,179.16,179.12,0.04213722]
[1747904003605,0.04129797,179.16,179.12,0.04213722]
[1747904003817,5.5822,179.11,179.08,5.5829]
[1747904004117,137.18,179.15,179.01,137.18]
[1747904004512,5.5815,179.13,179.06,5.5833]
[1747904004719,0.04006023,179.11,179.08,0.04075231]
[1747904004918,5.62226023,179.11,179.08,0.04075231]
[1747904005220,0.04006023,179.11,179.08,0.04075231]
[1747904007415,5.62216023,179.11,179.08,5.62345231]
[1747904007617,0.04006023,179.11,179.08,0.04075231]
[1747904008123,0.04006023,179.11,179.09,5.5824]
[1747904008724,0.04006023,179.11,179.08,0.04075231]
[1747904009824,1.9086,179.18,179.08,0.04075231]
[1747904010023,310.0,179.2,179.1,7.07071457]
[1747904010425,310.0,179.2,179.13,5.5814]
[1747904010623,310.0,179.2,179.12,137.18]
[1747904010824,0.04261649,179.18,179.14,0.04014622]
[1747904011924,5.5807,179.16,179.14,0.04014622]
[1747904012624,0.04261649,179.18,179.14,0.04014622]
[1747904013021,5.5808,179.15,179.14,0.04014622]
[1747904013523,5.5805,179.16,179.14,0.04014622]
[1747904014024,0.04261649,179.18,179.14,0.04014622]
[1747904016332,5.5804,179.17,179.14,0.04014622]
[1747904016525,0.04261649,179.18,179.14,0.04014622]
[1747904016828,5.5804,179.17,179.14,0.04014622]
[1747904017221,0.04261649,179.18,179.14,0.04014622]
[1747904017422,5.5807,179.16,179.14,0.04014622]
[1747904018630,5.5802,179.17,179.14,0.04014622]
[1747904018930,0.04261649,179.18,179.14,0.04014622]
[1747904019328,5.5803,179.17,179.14,5.62114622]
[1747904019530,0.04261649,179.18,179.14,0.04014622]
[1747904020532,5.5807,179.16,179.14,0.04014622]
[1747904020733,0.04261649,179.18,179.14,0.04014622]
[1747904021435,5.5804,179.17,179.14,5.62114622]
[1747904021626,0.04261649,179.18,179.14,0.04014622]
[1747904021822,0.04261649,179.18,179.15,136.66]
[1747904022030,310.0,179.25,179.15,143.73071457]
[1747904022629,5.5785,179.23,179.15,143.73071457]
[1747904023032,0.04082926,179.21,179.18,5.5797]
[1747904023232,0.04082926,179.21,179.17,0.03933929]
[1747904024336,5.5798,179.18,179.17,0.03933929]
[1747904026039,4.0111,179.2,179.17,0.03933929]
[1747904026735,9.5904,179.2,179.17,5.61923929]
[1747904027337,5.5796,179.19,179.17,0.03933929]
[1747904027639,4.0111,179.2,179.17,0.03933929]
[1747904027844,50.69192926,179.23,179.11,136.64]
[1747904028131,7.07071457,179.2,179.07,136.64]
[1747904028644,7.07071457,179.2,179.09,5.5826]
[1747904028836,0.04073172,179.16,179.13,0.03862038]
[1747904030646,5.5811,179.14,179.13,0.03862038]
[1747904031638,5.5811,179.14,179.13,2.038e-05]
[1747904031828,5.58,179.14,178.99,3.48046591]
[1747904032030,242.72,179.13,178.99,3.48046591]
[1747904032238,5.5842,179.04,178.99,3.48046591]
[1747904032541,317.07071457,179.12,178.99,3.48046591]
[1747904032735,0.0423214,179.07,179.04,0.03980048]
[1747904032937,5.5839,179.05,179.04,0.03980048]
[1747904034144,0.0423214,179.07,179.04,0.03980048]
[1747904034743,0.0423214,179.07,179.04,5.62370048]
[1747904036339,0.0423214,179.07,179.05,5.5838]
[1747904036537,0.0423214,179.07,179.04,0.03980048]
[1747904037046,0.0423214,179.07,179.04,5.62380048]
[1747904037638,0.0423214,179.07,179.05,5.5839]
[1747904038146,0.0423214,179.07,179.04,0.03980048]
[1747904038947,0.0423214,179.07,179.06,5.5836]
[1747904039641,0.0423214,179.07,179.05,5.5838]
[1747904039848,0.0423214,179.07,179.04,0.03980048]
[1747904040245,5.5838,179.06,179.04,0.03980048]
[1747904040543,0.0423214,179.07,179.04,0.03980048]
[1747904040747,5.6258214,179.07,179.04,0.03980048]
[1747904041546,0.0423214,179.07,179.04,0.03980048]
[1747904042243,5.6258214,179.07,179.04,0.03980048]
[1747904042453,0.0423214,179.07,179.04,0.03980048]
[1747904044246,5.6258214,179.07,179.04,0.03980048]
[1747904044851,0.0423214,179.07,179.04,0.03980048]
[1747904045044,402.6323214,179.12,179.04,0.03980048]
[1747904045647,5.5837,179.06,179.04,0.03980048]
[1747904046248,5.5839,179.05,179.04,0.03980048]
[1747904049851,0.03913664,179.07,179.04,0.03980048]
[1747904050254,0.03913664,179.07,179.05,136.2]
[1747904050553,0.03913664,179.07,179.06,5.5836]
[1747904050743,5.19176989,179.12,179.05,136.2]
[1747904050949,136.2,179.15,179.05,136.2]
[1747904051148,5.5816,179.13,179.05,136.2]
[1747904051355,136.2,179.15,179.05,136.2]
[1747904051758,5.5826,179.09,179.08,0.0404653]
[1747904052461,5.5824,179.1,179.08,0.0404653]
[1747904052660,0.04177765,179.12,179.08,0.0404653]
[1747904053258,5.5825,179.1,179.08,0.0404653]
[1747904053560,0.04177765,179.12,179.08,0.0404653]
[1747904053866,5.5826,179.09,179.08,0.0404653]
[1747904057063,0.04177765,179.12,179.08,0.0404653]
[1747904057361,5.19176989,179.14,179.13,5.5814]
[1747904057951,5.19176989,179.21,179.15,5.5806]
[1747904058156,5.5797,179.19,179.11,143.25071457]
[1747904058356,0.03893975,179.17,179.13,0.0422983]
[1747904058556,0.03893975,179.17,179.16,5.5802]
[1747904061259,233.51151987,179.24,179.16,136.16]
[1747904061260,97.33151987,179.24,179.16,136.16]
[1747904061661,97.33151987,179.24,179.19,5.5793]
[1747904061862,5.5786,179.22,179.19,5.5793]
[1747904062272,0.04026252,179.22,179.19,0.03987381]
[1747904062866,5.61896252,179.22,179.19,5.61917381]
[1747904063464,0.04026252,179.22,179.19,0.03987381]
[1747904064874,0.04026252,179.22,179.21,5.5789]
[1747904067882,354.0952214,179.32,179.24,5.5779]
[1747904068382,354.0952214,179.32,179.21,136.12]
[1747904068571,354.0952214,179.32,179.25,5.5774]
[1747904068770,5.5758,179.31,179.21,136.12]
[1747904068981,0.0410046,179.28,179.27,5.5768]
[1747904070483,0.0410046,179.28,179.26,141.6771]
[1747904070678,0.0410046,179.28,179.26,136.1]
[1747904070984,0.0410046,179.28,179.27,5.577]
[1747904071183,1.916,179.37,179.26,136.1]
[1747904071879,1.916,179.37,179.27,106.04]
[1747904072078,1.916,179.37,179.27,109.9909]
[1747904072278,0.04007048,179.34,179.3,0.03918934]
[1747904072481,0.04007048,179.34,179.31,135.54]
[1747904073082,0.04007048,179.34,179.33,5.5752]
[1747904076077,5.5728,179.41,179.38,5.5734]
[1747904076275,5.7696,179.43,179.31,135.54]
[1747904077087,5.5739,179.38,179.35,0.04266036]
[1747904077287,0.04028317,179.39,179.35,0.04266036]
[1747904077689,5.61388317,179.39,179.36,5.5741]
[1747904077890,5.61388317,179.39,179.35,0.04266036]
[1747904078185,5.61388317,179.39,179.35,5.61716036]
[1747904078390,5.5738,179.38,179.35,0.04266036]
[1747904079486,5.5738,179.38,179.35,5.61706036]
[1747904080081,0.04028317,179.39,179.35,0.04266036]
[1747904081990,0.04028317,179.39,179.35,5.61706036]
[1747904082184,0.04028317,179.39,179.35,0.04266036]
[1747904082491,5.61388317,179.39,179.35,5.61716036]
[1747904083391,5.61388317,179.39,179.36,5.5743]
[1747904083693,5.61388317,179.39,179.35,0.04266036]
[1747904083894,5.61388317,179.39,179.35,5.61706036]
[1747904084194,5.61388317,179.39,179.35,0.04266036]
[1747904084695,5.61388317,179.39,179.36,5.5741]
[1747904085494,5.61388317,179.39,179.35,5.61716036]
[1747904085698,5.5737,179.38,179.35,5.61716036]
[1747904085896,0.04028317,179.39,179.35,0.04266036]
[1747904086194,5.5743,179.36,179.35,0.04266036]
[1747904087089,217.9752214,179.38,179.3,135.44]
[1747904088097,5.5752,179.33,179.32,0.0419259]
[1747904090192,3.9058,179.35,179.32,0.0419259]
[1747904090397,0.03700655,179.36,179.32,0.0419259]
[1747904091300,0.03700655,179.36,179.35,5.5746]
[1747904094205,0.03700655,179.36,179.32,0.0419259]
[1747904094802,0.03700655,179.36,179.35,5.5746]
[1747904095198,0.03700655,179.36,179.32,0.0419259]
[1747904095400,0.03700655,179.36,179.33,5.5752]
[1747904095697,5.19176989,179.49,179.34,105.96]
[1747904095902,2.0312,179.46,179.34,105.96]
[1747904096603,0.04095993,179.42,179.38,5.61258254]
[1747904096803,0.04095993,179.42,179.38,0.03918254]
[1747904097203,0.04095993,179.42,179.39,5.5732]
[1747904097502,0.04095993,179.42,179.38,0.03918254]
[1747904097706,0.04095993,179.42,179.39,5.5731]
[1747904098607,0.04095993,179.42,179.38,0.03918254]
[1747904098806,6.89840069,179.55,179.38,7.09326178]
[1747904099103,10.76096989,179.53,179.49,5.5703]
[1747904099313,10.76096989,179.53,179.44,142.49407924]
[1747904099607,10.76096989,179.53,179.44,135.44]
[1747904099803,0.03645921,179.5,179.47,0.0418045]
[1747904100802,5.5706,179.48,179.47,0.0418045]
[1747904100997,0.03645921,179.5,179.39,105.94]
[1747904101218,135.44,179.49,179.38,135.44]
[1747904101513,1.8475,179.48,179.39,5.5731]
[1747904101809,5.5722,179.43,179.39,5.5731]
[1747904102010,5.60807598,179.43,179.39,5.6118414]
[1747904102407,0.03587598,179.43,179.39,0.0387414]
[1747904102814,0.03587598,179.43,179.34,134.94]
[1747904103006,2.0162,179.43,179.34,134.94]
[1747904103314,2.0162,179.43,179.34,140.5148]
[1747904103716,2.0162,179.43,179.37,0.03742836]
[1747904103717,0.04037173,179.4,179.37,0.03742836]
[1747904104212,5.5737,179.38,179.37,0.03742836]
[1747904104915,5.5734,179.39,179.37,0.03742836]
[1747904105116,0.04037173,179.4,179.37,0.03742836]
[1747904105511,5.5736,179.39,179.37,0.03742836]
[1747904106518,5.61357173,179.4,179.37,0.03742836]
[1747904106816,0.04037173,179.4,179.37,0.03742836]
[1747904107519,5.61357173,179.4,179.37,0.03742836]
[1747904108723,5.61357173,179.4,179.37,5.61132836]
[1747904108915,5.5737,179.38,179.37,0.03742836]
[1747904109324,0.04037173,179.4,179.37,0.03742836]
[1747904110121,0.04037173,179.4,179.38,5.5737]
[1747904110319,0.04037173,179.4,179.37,0.03742836]
[1747904110720,5.61357173,179.4,179.37,0.03742836]
[1747904111418,0.04037173,179.4,179.37,0.03742836]
[1747904112111,5.61367173,179.4,179.37,0.03742836]
[1747904112421,5.61367173,179.4,179.37,5.61132836]
[1747904113522,0.04037173,179.4,179.37,0.03742836]
[1747904114621,5.61347173,179.4,179.37,5.61132836]
[1747904115323,0.04037173,179.4,179.37,5.61132836]
[1747904115825,10.80524162,179.4,179.37,5.61132836]
[1747904116418,5.5734,179.39,179.37,0.03742836]
[1747904116621,5.23214162,179.4,179.37,0.03742836]
[1747904116917,5.23214162,179.4,179.31,134.94]
[1747904117123,5.19176989,179.4,179.32,5.5755]
[1747904117324,1.9735,179.39,179.32,5.5755]
[1747904117825,5.5746,179.36,179.34,0.04047615]
[1747904118026,0.036172,179.37,179.34,0.04047615]
[1747904118421,5.5743,179.36,179.34,0.04047615]
[1747904118725,5.19176989,179.35,179.34,0.04047615]
[1747904119028,136.9135,179.39,179.34,0.04047615]
[1747904119029,104.61414258,179.39,179.34,0.04047615]
[1747904119427,5.5742,179.37,179.34,0.04047615]
[1747904119628,104.61414258,179.39,179.34,0.04047615]
[1747904119825,0.04099974,179.38,179.34,0.04047615]
[1747904120731,5.5745,179.36,179.34,0.04047615]
[1747904121025,0.04099974,179.38,179.34,0.04047615]
[1747904121327,5.5745,179.36,179.34,0.04047615]
[1747904122228,5.61499974,179.38,179.34,0.04047615]
[1747904122728,0.04099974,179.38,179.34,0.04047615]
[1747904123529,0.04099974,179.38,179.35,5.5744]
[1747904123732,0.04099974,179.38,179.34,0.04047615]
[1747904125030,10.34760104,179.42,179.36,7.05536411]
[1747904125231,10.34760104,179.42,179.36,142.01536411]
[1747904125531,10.34760104,179.42,179.4,5.573]
[1747904126324,0.03898248,179.43,179.41,5.5728]
[1747904126731,0.03898248,179.43,179.42,5.5724]
[1747904127031,0.03898248,179.43,179.39,0.0402718]
[1747904127830,0.03898248,179.43,179.4,5.5728]
[1747904128127,0.03898248,179.43,179.39,0.0402718]
[1747904128531,0.03898248,179.43,179.4,5.5729]
[1747904128830,5.61108248,179.43,179.39,0.0402718]
[1747904129531,5.61108248,179.43,179.39,5.6133718]
[1747904129928,5.61108248,179.43,179.39,0.0402718]
[1747904130128,5.61108248,179.43,179.39,5.6135718]
[1747904130432,0.03898248,179.43,179.39,0.0402718]
[1747904130932,5.5731,179.4,179.39,0.0402718]
[1747904131237,0.03898248,179.43,179.39,0.0402718]
[1747904132233,5.61128248,179.43,179.39,5.6134718]
[1747904132734,5.5725,179.42,179.39,5.6134718]
[1747904133736,5.5728,179.41,179.39,0.0402718]
[1747904134734,5.5731,179.4,179.39,0.0402718]
[1747904135143,0.03898248,179.43,179.39,0.0402718]
[1747904136340,5.5725,179.42,179.39,0.0402718]
[1747904136733,0.03898248,179.43,179.39,0.0402718]
[1747904137030,5.61128248,179.43,179.39,5.6134718]
[1747904137233,5.61128248,179.43,179.39,0.0402718]
[1747904137436,5.5725,179.42,179.39,5.6135718]
[1747904138944,5.5725,179.42,179.39,0.0402718]
[1747904139138,5.61118248,179.43,179.39,0.0402718]
[1747904140243,5.5726,179.42,179.39,0.0402718]
[1747904140443,0.03898248,179.43,179.39,0.0402718]
[1747904140939,5.61108248,179.43,179.4,5.5729]
[1747904141143,0.03898248,179.43,179.4,5.5729]
[1747904141639,0.03898248,179.43,179.41,5.5727]
[1747904142142,0.03898248,179.43,179.4,5.573]
[1747904142642,0.03898248,179.43,179.39,0.0402718]
[1747904142944,0.03898248,179.43,179.42,5.5724]
[1747904146247,0.03898248,179.43,179.41,5.5726]
[1747904146444,0.03898248,179.43,179.39,0.0402718]
[1747904146648,0.03898248,179.43,179.41,5.5726]
[1747904146944,0.03898248,179.43,179.39,0.0402718]
[1747904147540,0.03898248,179.43,179.42,5.5724]
[1747904147843,0.03898248,179.43,179.39,0.0402718]
[1747904148245,0.03898248,179.43,179.42,5.5724]
[1747904149045,0.03898248,179.43,179.39,0.0402718]
[1747904151143,5.5731,179.4,179.39,0.0402718]
[1747904152545,0.03898248,179.43,179.33,134.46]
[1747904152546,2.0308,179.42,179.33,134.46]
[1747904152847,221.9097214,179.42,179.33,134.46]
[1747904153034,5.5736,179.39,179.35,5.5744]
[1747904153236,221.9097214,179.42,179.35,5.5744]
[1747904153533,5.5737,179.38,179.37,0.03879757]
[1747904154037,0.04252855,179.4,179.37,0.03879757]
[1747904154349,5.5736,179.39,179.37,0.03879757]
[1747904154545,0.04252855,179.4,179.37,0.03879757]
[1747904154949,5.5737,179.38,179.37,0.03879757]
[1747904156045,5.61582855,179.4,179.37,0.03879757]
[1747904156436,0.04252855,179.4,179.37,0.03879757]
[1747904157747,5.5736,179.39,179.37,0.03879757]
[1747904158249,5.5737,179.38,179.37,0.03879757]
[1747904158741,0.04252855,179.4,179.37,0.03879757]
[1747904158939,5.5736,179.39,179.37,0.03879757]
[1747904159344,0.04252855,179.4,179.37,0.03879757]
[1747904159535,5.5737,179.38,179.37,0.03879757]
[1747904159848,0.04252855,179.4,179.3,2.0383]
[1747904160144,3.9345,179.42,179.3,2.0383]
[1747904160548,5.5744,179.36,179.33,5.5752]
[1747904160735,5.61156141,179.36,179.33,5.61636198]
[1747904160937,0.03716141,179.36,179.33,0.04116198]
[1747904161145,0.03716141,179.36,179.27,487.2571]
[1747904161339,0.03716141,179.36,179.25,139.93636591]
[1747904161539,1.9868,179.37,179.25,139.93636591]
[1747904161741,5.5756,179.32,179.28,5.5767]
[1747904162140,5.61547626,179.32,179.28,5.61936267]
[1747904162447,0.03987626,179.32,179.28,5.61936267]
[1747904163241,0.03987626,179.32,179.3,5.5762]
[1747904163436,0.03987626,179.32,179.28,0.04276267]
[1747904163749,6.93790753,179.38,179.31,7.04735885]
[1747904163942,6.93790753,179.38,179.32,135.9151]
[1747904164140,6.93790753,179.38,179.37,5.574]
[1747904164342,10.34760104,179.4,179.35,7.04735885]
[1747904164541,13.79680139,179.45,179.36,0.03744249]
[1747904164745,13.79680139,179.45,179.37,134.02]
[1747904165247,13.79680139,179.45,179.44,5.5718]
[1747904165546,13.79680139,179.45,179.43,0.03581752]
[1747904165744,0.03952329,179.46,179.43,0.03581752]
[1747904165947,0.03952329,179.46,179.43,5.60771752]
[1747904166149,0.03952329,179.46,179.43,0.03581752]
[1747904166748,5.61082329,179.46,179.43,0.03581752]
[1747904167242,0.03952329,179.46,179.43,5.60791752]
[1747904167543,0.03952329,179.46,179.43,0.03581752]
[1747904167747,5.61102329,179.46,179.43,0.03581752]
[1747904168053,0.03952329,179.46,179.43,0.03581752]
[1747904168348,5.5718,179.44,179.43,0.03581752]
[1747904168546,0.03952329,179.46,179.37,134.02]
[1747904168751,134.02,179.5,179.37,134.02]
[1747904169351,5.5722,179.43,179.39,5.5732]
[1747904169551,5.60994878,179.43,179.39,5.60922016]
[1747904170848,0.03774878,179.43,179.4,5.573]
[1747904171051,0.03774878,179.43,179.39,0.03602016]
[1747904171547,0.03774878,179.43,179.42,5.5724]
[1747904172149,5.5706,179.48,179.45,5.5714]
[1747904172455,136.0452,179.51,179.41,134.0]
[1747904172652,1.9775,179.52,179.48,5.5705]
[1747904172854,1.9775,179.52,179.42,7.04735885]
[1747904173059,0.03891506,179.49,179.45,0.03780538]
[1747904173758,0.03891506,179.49,179.46,5.5711]
[1747904174154,0.03891506,179.49,179.47,5.5707]
[1747904175155,0.03891506,179.49,179.46,139.5511]
[1747904175456,0.03891506,179.49,179.46,133.98]
[1747904176452,5.5706,179.48,179.46,133.98]
[1747904177256,5.60931506,179.49,179.46,133.98]
[1747904177657,0.03891506,179.49,179.46,133.98]
[1747904178058,5.5707,179.48,179.46,133.98]
[1747904178262,0.03891506,179.49,179.46,133.98]
[1747904178854,5.60941506,179.49,179.46,133.98]
[1747904179359,5.5706,179.48,179.46,133.98]
[1747904179558,0.03891506,179.49,179.46,133.98]
[1747904179859,5.60931506,179.49,179.46,133.98]
[1747904180257,0.03891506,179.49,179.46,133.98]
[1747904180565,5.5706,179.48,179.46,133.98]
[1747904180755,0.03891506,179.49,179.46,133.98]
[1747904180949,5.60931506,179.49,179.46,133.98]
[1747904182362,5.5706,179.48,179.46,133.98]
[1747904182660,0.03891506,179.49,179.46,133.98]
[1747904182959,5.60931506,179.49,179.46,133.98]
[1747904183262,0.03891506,179.49,179.46,133.98]
[1747904184854,5.5708,179.48,179.46,133.98]
[1747904185058,0.03891506,179.49,179.46,133.98]
[1747904185252,0.03891506,179.49,179.46,139.5511]
[1747904185860,0.03891506,179.49,179.47,5.5708]
[1747904186564,5.60921506,179.49,179.46,133.98]
[1747904186755,0.03891506,179.49,179.46,133.98]
[1747904187169,5.60931506,179.49,179.46,133.98]
[1747904187363,0.03891506,179.49,179.46,133.98]
[1747904188664,5.5709,179.47,179.46,133.98]
[1747904188864,0.03891506,179.49,179.46,133.98]
[1747904189363,0.03891506,179.49,179.47,5.5706]
[1747904190365,0.03891506,179.49,179.48,5.5706]
[1747904190768,0.03891506,179.49,179.46,133.98]
[1747904191363,1.8735,179.56,179.46,133.98]
[1747904191565,5.5687,179.55,179.46,133.98]
[1747904192161,5.5687,179.54,179.51,5.5694]
[1747904192365,5.61059202,179.54,179.51,5.60833814]
[1747904192668,0.04189202,179.54,179.51,0.03893814]
[1747904193275,0.04189202,179.54,179.51,133.95893814]
[1747904194967,0.04189202,179.54,179.51,0.03893814]
[1747904195563,5.5692,179.53,179.51,0.03893814]
[1747904195766,0.04189202,179.54,179.51,0.03893814]
[1747904196670,5.61079202,179.54,179.51,0.03893814]
[1747904197166,0.04189202,179.54,179.52,5.5692]
[1747904197378,0.04189202,179.54,179.51,0.03893814]
[1747904198871,0.04189202,179.54,179.52,5.5693]
[1747904200073,0.04189202,179.54,179.51,0.03893814]
[1747904200074,0.04189202,179.54,179.53,5.569]
[1747904205479,0.04189202,179.54,179.51,0.03893814]
[1747904206284,0.04189202,179.54,179.42,5.36176591]
[1747904206466,140.4415051,179.56,179.42,3.48046591]
[1747904206670,140.4415051,179.56,179.42,9.05266591]
[1747904206972,140.4415051,179.56,179.42,3.48046591]
[1747904207178,0.03681033,179.51,179.47,0.03511733]
[1747904207372,0.03681033,179.51,179.42,3.48046591]
[1747904207583,3.81761033,179.51,179.42,3.48046591]
[1747904207780,5.5725,179.42,179.4,133.4]
[1747904208680,5.5725,179.42,179.39,0.04216243]
[1747904210381,5.6100908,179.43,179.39,5.61556243]
[1747904211177,0.0378908,179.43,179.39,0.04216243]
[1747904212177,5.6102908,179.43,179.39,5.61556243]
[1747904212381,5.6102908,179.43,179.39,0.04216243]
[1747904212582,0.0378908,179.43,179.39,0.04216243]
[1747904212783,0.0378908,179.43,179.41,5.5725]
[1747904212985,0.0378908,179.43,179.39,0.04216243]
[1747904213584,0.0378908,179.43,179.42,5.5725]
[1747904213984,0.0378908,179.43,179.41,133.46]
[1747904213985,0.0378908,179.43,179.41,139.0327]
[1747904214184,0.0378908,179.43,179.41,133.46]
[1747904214985,0.0378908,179.43,179.42,5.5725]
[1747904215174,0.0378908,179.43,179.41,133.46]
[1747904215685,0.0378908,179.43,179.41,139.0327]
[1747904216091,0.0378908,179.43,179.41,133.46]
[1747904216382,0.0378908,179.43,179.41,139.0328]
[1747904216891,0.0378908,179.43,179.41,133.46]
[1747904217088,0.0378908,179.43,179.39,0.04216243]
[1747904217280,5.5725,179.42,179.39,0.04216243]
[1747904217481,0.0378908,179.43,179.39,0.04216243]
[1747904219182,0.0378908,179.43,179.41,5.5726]
[1747904219387,0.0378908,179.43,179.39,0.04216243]
[1747904219781,0.0378908,179.43,179.4,5.573]
[1747904219987,0.0378908,179.43,179.39,0.04216243]
[1747904223093,1.9288908,179.43,179.39,0.04216243]
[1747904223788,5.5731,179.4,179.39,0.04216243]
[1747904224882,5.5741,179.37,179.33,133.48]
[1747904225193,217.9752214,179.42,179.29,132.98]
[1747904225393,5.5752,179.34,179.29,132.98]
[1747904225580,217.9752214,179.41,179.29,140.0215051]
[1747904225786,134.871,179.43,179.29,142.0177051]
[1747904225981,0.03724444,179.38,179.34,0.04118407]
[1747904226186,0.03724444,179.38,179.36,5.5742]
[1747904226388,0.03724444,179.38,179.34,0.04118407]
[1747904227094,5.5742,179.37,179.34,0.04118407]
[1747904227393,0.03724444,179.38,179.34,0.04118407]
[1747904227696,5.5746,179.36,179.34,0.04118407]
[1747904228293,5.5746,179.35,179.34,0.04118407]
[1747904228891,5.5744,179.36,179.34,0.04118407]
[1747904229088,0.03724444,179.38,179.34,0.04118407]
[1747904230201,5.5741,179.37,179.34,0.04118407]
[1747904230695,5.5746,179.35,179.34,0.04118407]
[1747904231497,0.03724444,179.38,179.34,0.04118407]
[1747904231694,0.03724444,179.38,179.35,5.5746]
[1747904231896,0.03724444,179.38,179.34,0.04118407]
[1747904232797,5.5741,179.37,179.34,0.04118407]
[1747904233098,0.03724444,179.38,179.34,0.04118407]
[1747904233099,5.61104444,179.38,179.34,0.04118407]
[1747904233394,0.03724444,179.38,179.34,0.04118407]
[1747904234997,0.03724444,179.38,179.37,5.574]
[1747904239197,0.03724444,179.38,179.36,133.02]
[1747904239900,0.03724444,179.38,179.37,5.574]
[1747904248105,5.5721,179.44,179.41,5.5727]
[1747904248306,217.9752214,179.46,179.36,140.0615051]
[1747904248499,3.9295,179.48,179.36,140.0615051]
[1747904248806,3.9295,179.48,179.44,5.5716]
[1747904249101,5.5711,179.47,179.44,5.5716]
[1747904249298,5.5711,179.47,179.44,5.61150387]
[1747904250307,5.61123341,179.48,179.45,5.5714]
[1747904251607,0.04063341,179.48,179.44,0.03990387]